bitfinex/quotes_BTCUSD_20250508
["timestamp","ask_amount","ask_price","bid_price","bid_amount"]
[1746666017067,0.0305,97999.0,97998.0,2.4833705]
[1746666017682,0.01020366,98004.0,97998.0,2.4833705]
[1746666017683,0.01020324,98008.0,98000.0,0.05]
[1746666017900,0.01020324,98008.0,97998.0,1.83032014]
[1746666017901,0.3,98164.0,98056.0,1.83032014]
[1746666018118,0.05085762,98176.0,98071.0,1.61621587]
[1746666018119,0.87071151,98100.0,98071.0,1.61621587]
[1746666018330,0.07158919,98155.0,98072.0,1.35296008]
[1746666018331,0.0153,98089.0,98072.0,1.35296008]
[1746666018541,0.0153,98089.0,98052.0,0.05]
[1746666018542,0.01019627,98075.0,98073.0,0.52463553]
[1746666018746,0.01019627,98075.0,98047.0,0.01019919]
[1746666018747,0.01019669,98071.0,98063.0,0.5042433]
[1746666018956,0.01019648,98073.0,98063.0,0.5042433]
[1746666018957,0.21414272,98066.0,98063.0,0.01]
[1746666019162,0.21414272,98066.0,98024.0,0.00757933]
[1746666019163,0.21414272,98066.0,98064.0,0.23341207]
[1746666019361,0.21414272,98066.0,98040.0,0.01019991]
[1746666019362,0.20395676,98060.0,98059.0,0.22767297]
[1746666019558,0.20395676,98060.0,97998.0,0.3]
[1746666019559,0.20398588,98046.0,98045.0,0.1]
[1746666019790,0.20398299,98048.0,97995.0,0.34]
[1746666019791,0.031,98047.0,98046.0,0.22767297]
[1746666020012,0.36847715,98056.0,98053.0,0.22767297]
[1746666020167,0.36847715,98056.0,98054.0,0.21747451]
[1746666020168,0.20396716,98055.0,98054.0,0.21747451]
[1746666020420,0.0163,98049.0,98048.0,0.21747451]
[1746666020633,0.20398172,98048.0,98047.0,0.21747451]
[1746666020848,0.22028172,98048.0,98047.0,0.21747451]
[1746666021272,0.20398172,98048.0,98047.0,0.4235623]
[1746666021897,0.20469059,98048.0,98047.0,0.4235623]
[1746666022309,0.00070887,98048.0,98047.0,0.4235623]
[1746666022515,0.36847715,98060.0,98059.0,0.1]
[1746666022716,0.21415122,98062.0,98061.0,0.1]
[1746666022924,0.21234788,98062.0,98061.0,0.20689014]
[1746666023339,0.21414686,98064.0,98063.0,0.1]
[1746666023535,0.21414686,98064.0,98063.0,0.20689014]
[1746666024152,0.02679586,98079.0,98075.0,0.1]
[1746666024380,0.01019596,98078.0,98075.0,0.20689014]
[1746666024755,0.36847715,98080.0,98079.0,0.1]
[1746666024960,0.01019544,98083.0,98075.0,0.10689014]
[1746666024961,0.20392348,98076.0,98075.0,0.10689014]
[1746666025177,0.20394012,98068.0,98067.0,0.05]
[1746666025400,0.20394012,98068.0,97997.0,1.02043308]
[1746666025401,0.01020168,98023.0,98016.0,0.1]
[1746666025602,0.0317,98064.0,98017.0,0.10893012]
[1746666025603,0.01020147,98025.0,98017.0,0.10893012]
[1746666025805,0.20404415,98018.0,98017.0,0.1]
[1746666026015,0.0159,98015.0,97994.0,0.1]
[1746666026226,0.01636372,98018.0,98017.0,0.1]
[1746666026435,0.0158,98021.0,98020.0,0.1]
[1746666026652,0.0153,98034.0,98032.0,0.1]
[1746666026653,0.01020064,98033.0,98032.0,0.1]
[1746666026811,0.2142152,98033.0,98032.0,0.1]
[1746666027034,0.2142152,98033.0,98012.0,0.20405571]
[1746666027035,0.01020231,98017.0,98016.0,0.1]
[1746666027379,0.01020231,98017.0,98016.0,0.20689014]
[1746666027566,0.01020199,98020.0,98016.0,0.20689014]
[1746666027567,0.01019908,98048.0,98042.0,0.05]
[1746666027909,0.23537132,98053.0,98052.0,0.05]
[1746666029315,0.0101969,98069.0,98059.0,0.05]
[1746666029505,0.0158,98090.0,98050.0,0.05]
[1746666029506,0.01019679,98070.0,98069.0,0.05]
[1746666029682,0.01019679,98070.0,98065.0,0.1]
[1746666029683,0.24504335,98066.0,98065.0,0.1]
[1746666029886,0.04109721,98066.0,98065.0,0.05]
[1746666030203,0.04109721,98066.0,98058.0,0.05]
[1746666030204,0.0309,98059.0,98058.0,0.05]
[1746666030420,0.0309,98059.0,98058.0,0.30396092]
[1746666030617,0.0309,98059.0,98058.0,0.1]
[1746666030813,0.23485884,98059.0,98058.0,0.1]
[1746666031340,0.20295393,98059.0,98058.0,0.1]
[1746666032576,0.20787602,98059.0,98058.0,0.1]
[1746666032780,0.20787602,98059.0,98058.0,0.6]
[1746666033618,0.00492209,98059.0,98058.0,0.6]
[1746666034162,0.21428826,98061.0,98060.0,0.1]
[1746666034707,0.0001341,98061.0,98060.0,0.1]
[1746666035786,0.0001341,98061.0,98060.0,0.6]
[1746666036192,0.00068457,98061.0,98060.0,0.6]
[1746666036589,0.00068457,98061.0,98060.0,5.5914499]
[1746666036927,0.0001341,98061.0,98060.0,5.5914499]
[1746666037352,0.01019461,98091.0,98077.0,0.3039214]
[1746666037542,0.01019451,98092.0,98077.0,0.41081154]
[1746666037749,0.20390566,98085.0,98077.0,0.40061154]
[1746666038130,0.20390151,98087.0,98077.0,0.19669014]
[1746666038340,0.01019357,98101.0,98077.0,0.19872901]
[1746666038540,0.20388545,98095.0,98077.0,4.87933187]
[1746666038738,0.01019419,98095.0,98077.0,4.87729314]
[1746666038942,0.01019409,98096.0,98077.0,4.87729314]
[1746666038943,0.01019274,98109.0,98077.0,5.39183399]
[1746666039145,0.21405742,98105.0,98077.0,5.39183399]
[1746666039342,0.01019253,98111.0,98077.0,5.39183399]
[1746666039602,0.01019305,98106.0,98077.0,5.39183399]
[1746666039805,0.01019492,98088.0,98077.0,1.10039014]
[1746666040045,0.20391849,98079.0,98077.0,0.69669014]
[1746666040192,0.20389358,98091.0,98077.0,0.69669014]
[1746666040399,0.01322354,98115.0,98114.0,0.2038445]
[1746666040587,0.01595311,98147.0,98114.0,0.2038445]
[1746666040588,0.01595311,98147.0,98144.0,0.0101891]
[1746666040782,0.01595311,98147.0,98146.0,0.25377804]
[1746666040987,0.01595311,98147.0,98146.0,4.93438104]
[1746666041188,0.0001,98199.0,98170.0,0.20372822]
[1746666041383,0.0001,98199.0,98195.0,0.0898]
[1746666041609,0.0001,98199.0,98188.0,0.88183632]
[1746666041812,0.0001,98199.0,98189.0,4.33799014]
[1746666042045,0.20367843,98194.0,98193.0,0.05]
[1746666042404,0.20367843,98194.0,98190.0,0.00203654]
[1746666042405,0.20368465,98191.0,98190.0,0.05203668]
[1746666042618,0.01026371,98196.0,98190.0,0.05203668]
[1746666042619,0.01026371,98196.0,98193.0,0.05]
[1746666042620,8e-05,98196.0,98193.0,0.05]
[1746666042813,8e-05,98196.0,98195.0,0.0998]
[1746666042814,0.00052748,98196.0,98195.0,0.0998]
[1746666043021,0.11281922,98200.0,98199.0,0.0898]
[1746666043222,0.11281922,98200.0,98199.0,0.09183627]
[1746666043460,0.11281922,98200.0,98199.0,4.77243927]
[1746666043637,0.05,98205.0,98204.0,0.29345769]
[1746666043875,0.01017801,98251.0,98199.0,4.94019323]
[1746666043876,0.66806748,98279.0,98278.0,0.01]
[1746666044086,0.66806748,98279.0,98254.0,0.20355273]
[1746666044087,0.20351617,98273.0,98271.0,0.00203425]
[1746666044298,0.20351617,98273.0,98241.0,0.0398]
[1746666044299,0.01017583,98272.0,98250.0,0.0398]
[1746666044509,0.01017573,98273.0,98254.0,0.05]
[1746666044510,0.20354947,98257.0,98254.0,0.05]
[1746666044719,0.20354933,98257.0,98255.0,0.0020351]
[1746666044929,0.0102,98339.0,98267.0,0.01017635]
[1746666045139,0.00532375,98279.0,98278.0,0.1209]
[1746666045352,0.01017262,98303.0,98292.0,0.01]
[1746666045552,0.36908669,98340.0,98292.0,0.00203395]
[1746666045553,0.05562527,98293.0,98292.0,0.00203395]
[1746666045755,0.0517698,98293.0,98292.0,0.00203395]
[1746666045959,0.0517698,98293.0,98289.0,0.26323408]
[1746666045960,0.20347949,98290.0,98289.0,0.26323408]
[1746666046169,0.20351676,98272.0,98271.0,0.05]
[1746666046368,0.20351676,98272.0,98254.0,0.5]
[1746666046369,0.21372522,98257.0,98254.0,0.5]
[1746666046497,0.0017698,98272.0,98271.0,0.05]
[1746666046699,0.0017698,98272.0,98271.0,0.29331884]
[1746666046903,0.0017698,98272.0,98271.0,0.32451884]
[1746666047106,0.0017698,98272.0,98271.0,0.33451884]
[1746666047337,0.0017698,98272.0,98271.0,0.0898]
[1746666047542,0.0017698,98272.0,98271.0,0.33451884]
[1746666047878,0.0017698,98272.0,98271.0,0.73631296]
[1746666048109,0.0017698,98272.0,98271.0,0.10179412]
[1746666048371,0.21372608,98257.0,98216.0,0.01]
[1746666048570,0.21372608,98257.0,98144.0,2.54725879]
[1746666048572,0.21378179,98231.0,98230.0,0.05]
[1746666048757,0.21381965,98214.0,98211.0,0.05]
[1746666048952,0.21381965,98214.0,98184.0,0.01]
[1746666048953,1.01761713,98269.0,98227.0,0.05]
[1746666049151,1.01761713,98269.0,98241.0,0.05]
[1746666049152,0.20358014,98242.0,98241.0,0.05]
[1746666049363,0.01018236,98209.0,98206.0,0.05]
[1746666049563,0.44940195,98260.0,98180.0,0.05]
[1746666049564,0.01018444,98189.0,98180.0,0.05]
[1746666049773,0.01018444,98189.0,98146.0,0.06129503]
[1746666049774,0.0155,98224.0,98146.0,0.06129503]
[1746666049775,0.01,98230.0,98216.0,0.05]
[1746666049990,0.001,98257.0,98221.0,0.05]
[1746666050192,0.001,98257.0,98218.0,0.0898]
[1746666050193,0.21380932,98219.0,98218.0,0.0898]
[1746666050602,0.20365561,98205.0,98204.0,0.00203579]
[1746666050822,0.20365561,98205.0,98152.0,0.40752932]
[1746666050823,0.01018599,98174.0,98173.0,0.0898]
[1746666051036,0.01018164,98216.0,98202.0,0.01018309]
[1746666051255,0.01018164,98216.0,98187.0,0.0398]
[1746666051256,0.01017822,98249.0,98237.0,0.0398]
[1746666051460,0.0114254,98311.0,98237.0,0.0398]
[1746666051461,0.01017925,98239.0,98238.0,0.00203525]
[1746666051667,0.01017925,98239.0,98222.0,0.01018101]
[1746666051668,0.01018008,98231.0,98228.0,0.05]
[1746666051889,0.20359549,98234.0,98176.0,0.01]
[1746666051890,0.01018215,98211.0,98209.0,0.05]
[1746666052095,0.20365769,98204.0,98203.0,0.0898]
[1746666052299,0.01,98251.0,98209.0,0.05]
[1746666052499,0.01018195,98213.0,98210.0,2.95619412]
[1746666052705,0.01018371,98196.0,98195.0,0.05]
[1746666052910,0.20368465,98191.0,98188.0,0.05]
[1746666053115,0.20368465,98191.0,98133.0,0.01]
[1746666053116,0.21386888,98191.0,98190.0,0.05]
[1746666053364,0.21386888,98191.0,98180.0,0.05]
[1746666053365,0.2037054,98181.0,98180.0,0.05]
[1746666053575,0.2037054,98181.0,98121.0,0.05]
[1746666053576,0.01018444,98189.0,98188.0,0.0898]
[1746666053776,0.20367627,98196.0,98138.0,0.40758805]
[1746666053777,0.21385882,98196.0,98195.0,0.05]
[1746666054002,0.00756767,98233.0,98230.0,0.01018018]
[1746666054223,0.0017698,98252.0,98248.0,0.05]
[1746666054224,0.00801871,98252.0,98248.0,0.05]
[1746666054467,0.00801871,98252.0,98204.0,0.01]
[1746666054468,0.00113427,98257.0,98256.0,0.0898]
[1746666054701,0.00113427,98257.0,98256.0,4.54633446]
[1746666054911,0.001,98257.0,98256.0,4.98609412]
[1746666055126,0.049,98293.0,98292.0,0.29327535]
[1746666055334,0.048,98293.0,98292.0,0.39506947]
[1746666055540,0.048,98293.0,98292.0,3.01129466]
[1746666055760,0.049,98293.0,98292.0,3.07492519]
[1746666055982,0.049,98293.0,98292.0,0.08972519]
[1746666056621,0.049,98293.0,98292.0,0.05]
[1746666056826,0.049,98293.0,98292.0,0.55]
[1746666056827,0.28497328,98293.0,98292.0,0.55]
[1746666057059,0.18329412,98293.0,98292.0,0.47788321]
[1746666057265,0.18329412,98293.0,98292.0,0.30330982]
[1746666057266,0.18429412,98293.0,98292.0,0.30330982]
[1746666057477,0.01,98286.0,98257.0,0.05]
[1746666057694,0.25731441,98293.0,98269.0,0.05]
[1746666057695,0.01017542,98276.0,98269.0,0.05]
[1746666057905,0.01017542,98276.0,98274.0,0.05]
[1746666058107,0.21368607,98275.0,98274.0,0.05]
[1746666058346,0.01017552,98275.0,98274.0,0.05]
[1746666058563,0.01017552,98275.0,98267.0,0.243251]
[1746666058564,0.21369399,98272.0,98271.0,0.05]
[1746666058776,0.17384988,98274.0,98271.0,0.05]
[1746666058982,0.01017583,98272.0,98271.0,0.05]
[1746666059134,0.01017563,98274.0,98272.0,0.05]
[1746666059338,0.21368939,98275.0,98272.0,0.05]
[1746666059339,0.01017345,98295.0,98292.0,0.08972519]
[1746666059544,0.01017345,98295.0,98273.0,0.1038292]
[1746666059545,0.01017397,98290.0,98289.0,0.08972519]
[1746666060103,0.01017397,98290.0,98272.0,0.5]
[1746666060104,0.35017542,98276.0,98273.0,0.00203482]
[1746666060305,0.01017552,98275.0,98272.0,0.5]
[1746666060509,0.0101748,98282.0,98272.0,0.5]
[1746666060510,0.001296,98300.0,98292.0,0.12082519]
[1746666060636,0.001296,98300.0,98292.0,0.22465354]
[1746666060862,0.001296,98300.0,98292.0,4.05201931]
[1746666061066,0.001296,98300.0,98292.0,4.06656016]
[1746666061693,0.001296,98300.0,98292.0,4.06645871]
[1746666062371,0.057077,98298.0,98297.0,0.32418874]
[1746666062576,0.057077,98298.0,98297.0,0.42598286]
[1746666062780,0.057077,98298.0,98297.0,5.10658586]
[1746666063254,0.057077,98298.0,98297.0,5.01696212]
[1746666063450,0.040477,98298.0,98297.0,3.95388286]
[1746666063712,0.001296,98300.0,98299.0,0.2930846]
[1746666063928,0.001296,98300.0,98299.0,0.73487872]
[1746666064117,0.001296,98300.0,98299.0,5.41548172]
[1746666064335,0.001296,98300.0,98299.0,5.51548172]
[1746666064526,0.01029432,98309.0,98308.0,0.29306598]
[1746666064723,0.01029432,98309.0,98308.0,5.0854631]
[1746666064944,0.01029432,98309.0,98308.0,5.0916631]
[1746666065067,0.01029432,98309.0,98308.0,5.0754631]
[1746666065457,0.01029432,98309.0,98308.0,4.98583936]
[1746666065715,0.01029432,98309.0,98308.0,0.8794601]
[1746666066344,0.01029432,98309.0,98308.0,1.3794601]
[1746666066543,0.01029432,98309.0,98308.0,1.11563636]
[1746666066744,0.01029432,98309.0,98308.0,0.8948601]
[1746666068215,0.21373449,98309.0,98308.0,0.5]
[1746666068415,0.21373449,98309.0,98308.0,0.8948601]
[1746666068416,0.01029432,98309.0,98308.0,0.8948601]
[1746666069587,0.21373449,98309.0,98308.0,0.58962374]
[1746666069793,0.34792861,98309.0,98308.0,0.5]
[1746666070622,0.35192245,98309.0,98308.0,0.5]
[1746666070832,0.36192245,98309.0,98308.0,0.4844]
[1746666071036,0.01,98307.0,98276.0,0.08962374]
[1746666071244,0.20348985,98285.0,98284.0,0.08962374]
[1746666071458,0.20348985,98285.0,98228.0,0.05]
[1746666071459,0.01528816,98309.0,98297.0,0.01017325]
[1746666071664,0.01528816,98309.0,98308.0,0.03972519]
[1746666071665,0.21872833,98309.0,98308.0,0.03972519]
[1746666071836,0.21473449,98309.0,98308.0,0.03972519]
[1746666072277,0.21473449,98309.0,98308.0,0.08962374]
[1746666072493,0.21473449,98309.0,98308.0,0.58962374]
[1746666072712,0.01129432,98309.0,98308.0,0.69141786]
[1746666072915,0.01129432,98309.0,98308.0,0.8948601]
[1746666073517,0.01129432,98309.0,98308.0,0.58962374]
[1746666073720,0.01229432,98309.0,98308.0,0.58962374]
[1746666074063,0.01229432,98309.0,98308.0,5.37202086]
[1746666074265,0.06720648,98314.0,98313.0,0.29305563]
[1746666074465,0.06720648,98314.0,98313.0,0.39484975]
[1746666074693,0.06720648,98314.0,98313.0,4.23994975]
[1746666075083,0.06720648,98314.0,98313.0,3.95724975]
[1746666075262,0.06720648,98314.0,98313.0,4.45724975]
[1746666075461,0.06720648,98314.0,98313.0,3.02194975]
[1746666075678,0.06720648,98314.0,98313.0,1.98204975]
[1746666075837,0.0112677,98340.0,98313.0,1.98204975]
[1746666075838,0.0010989,98340.0,98315.0,0.69835149]
[1746666076039,0.00442196,98316.0,98315.0,0.80014561]
[1746666076243,0.00442196,98316.0,98315.0,5.48074861]
[1746666076402,0.00442196,98316.0,98315.0,5.46544861]
[1746666077043,0.00442196,98316.0,98315.0,5.07544861]
[1746666077251,0.00442196,98316.0,98315.0,3.57854561]
[1746666077686,0.00442196,98316.0,98315.0,4.07854561]
[1746666079152,0.20333882,98358.0,98357.0,0.03972519]
[1746666079355,0.20333882,98358.0,98345.0,0.2033657]
[1746666079356,0.08141416,98333.0,98332.0,0.08962374]
[1746666079772,0.21352365,98350.0,98343.0,0.03972519]
[1746666079973,0.01016849,98343.0,98342.0,0.03972519]
[1746666080178,0.01016838,98344.0,98342.0,0.03972519]
[1746666080384,0.09158254,98344.0,98343.0,0.03972519]
[1746666080592,0.09158254,98344.0,98332.0,0.01016962]
[1746666080593,0.20338017,98338.0,98337.0,0.08962374]
[1746666080792,0.20338017,98338.0,98332.0,0.5]
[1746666080793,0.29480467,98333.0,98332.0,0.4522]
[1746666081010,0.38659879,98333.0,98332.0,0.4522]
[1746666081442,0.39659879,98333.0,98332.0,0.4522]
[1746666081658,0.20345466,98302.0,98301.0,0.03972519]
[1746666081871,0.20345466,98302.0,98281.0,0.0101749]
[1746666081872,0.01017428,98287.0,98286.0,0.08962374]
[1746666082078,0.01017428,98287.0,98284.0,0.01017459]
[1746666082196,0.01017428,98287.0,98286.0,0.08962374]
[1746666082397,0.21365781,98288.0,98287.0,0.08962374]
[1746666082613,0.21365781,98288.0,98281.0,0.0101749]
[1746666082614,0.01017542,98276.0,98270.0,0.21369595]
[1746666083006,0.01017542,98276.0,98247.0,0.30535269]
[1746666083007,0.21371505,98262.0,98258.0,0.08962374]
[1746666083179,0.2137013,98268.0,98267.0,0.08962374]
[1746666083381,0.01017625,98268.0,98267.0,0.08962374]
[1746666085020,0.01017666,98264.0,98263.0,0.08962374]
[1746666085552,0.01017625,98268.0,98256.0,0.000296]
[1746666085553,0.01,98290.0,98271.0,0.03972519]
[1746666085787,0.00101,98314.0,98312.0,0.2034336]
[1746666086023,0.00101,98314.0,98310.0,0.21361]
[1746666086234,0.01017169,98312.0,98309.0,0.03972519]
[1746666086379,0.01017293,98300.0,98299.0,0.08962374]
[1746666086585,0.30523194,98311.0,98296.0,0.08962374]
[1746666086586,0.21363825,98297.0,98296.0,0.08962374]
[1746666086959,0.01017304,98299.0,98296.0,0.08962374]
[1746666086960,0.20346086,98299.0,98298.0,0.08962374]
[1746666087090,0.01,98347.0,98313.0,0.29305563]
[1746666087296,0.00010145,98367.0,98313.0,0.29305563]
[1746666087297,0.0101689,98339.0,98313.0,0.41004975]
[1746666087545,0.01016921,98336.0,98313.0,0.42574975]
[1746666087750,0.01016942,98334.0,98313.0,0.42574975]
[1746666087948,0.01016931,98335.0,98313.0,0.42574975]
[1746666088148,0.01016911,98337.0,98313.0,0.42574975]
[1746666088554,0.01016962,98332.0,98313.0,0.30825563]
[1746666088754,0.01016931,98335.0,98313.0,0.30825563]
[1746666088929,0.01016921,98336.0,98313.0,0.41004975]
[1746666089143,0.01017035,98325.0,98313.0,0.80825563]
[1746666089346,0.01016983,98330.0,98313.0,0.80825563]
[1746666089895,0.01016973,98331.0,98313.0,0.80825563]
[1746666090047,0.001,98358.0,98313.0,5.02414975]
[1746666090242,0.01016787,98349.0,98313.0,0.92524975]
[1746666090430,0.01016838,98344.0,98313.0,0.92524975]
[1746666090624,0.28478141,98345.0,98313.0,0.92524975]
[1746666090832,0.01016849,98343.0,98313.0,0.92524975]
[1746666091041,0.01016632,98364.0,98313.0,5.99585275]
[1746666091238,0.20337744,98340.0,98313.0,5.60585275]
[1746666091457,0.08141416,98339.0,98313.0,1.48604975]
[1746666091684,0.08141416,98339.0,98313.0,1.07714975]
[1746666091884,0.08141416,98339.0,98313.0,0.80825563]
[1746666091885,0.01017045,98324.0,98313.0,0.80825563]
[1746666092056,0.01016983,98330.0,98313.0,0.80825563]
[1746666092057,0.01016921,98336.0,98313.0,0.80825563]
[1746666092298,0.08141416,98339.0,98313.0,0.96988026]
[1746666092469,0.08141416,98349.0,98313.0,0.96988026]
[1746666092470,0.01016704,98357.0,98354.0,0.03972519]
[1746666092669,0.20334502,98355.0,98354.0,0.03972519]
[1746666092861,0.001,98358.0,98357.0,0.03972519]
[1746666093101,0.01016797,98348.0,98344.0,0.01016838]
[1746666093296,0.01016797,98348.0,98347.0,0.08962374]
[1746666093500,0.20335404,98351.0,98350.0,0.03972519]
[1746666093701,0.01016756,98352.0,98351.0,0.03972519]
[1746666093925,0.01016756,98352.0,98351.0,0.08962374]
[1746666094476,0.01016756,98352.0,98351.0,0.03972519]
[1746666094678,0.01016756,98352.0,98342.0,0.06006714]
[1746666094679,0.20336983,98343.0,98342.0,0.08962374]
[1746666095101,0.20336983,98343.0,98342.0,0.03972519]
[1746666095307,0.20433981,98358.0,98357.0,0.08962374]
[1746666095478,0.16344204,98358.0,98357.0,0.08962374]
[1746666095678,0.20335122,98352.0,98351.0,0.08962374]
[1746666096573,0.20335122,98352.0,98351.0,0.58962374]
[1746666098098,0.20335122,98352.0,98351.0,0.52956519]
[1746666098099,0.30514534,98352.0,98351.0,0.52956519]
[1746666098220,0.27333507,98352.0,98351.0,0.52956519]
[1746666098834,0.27333507,98352.0,98343.0,0.02956519]
[1746666098835,0.20336777,98344.0,98343.0,0.02956519]
[1746666099046,0.20336777,98344.0,98326.0,0.02956519]
[1746666099047,0.20340293,98327.0,98326.0,0.02956519]
[1746666099246,0.20343009,98314.0,98313.0,0.07946374]
[1746666099447,0.20343009,98314.0,98304.0,0.00203413]
[1746666099448,0.20343396,98312.0,98311.0,0.14075877]
[1746666099803,0.20343289,98313.0,98311.0,0.06129503]
[1746666100009,0.20343289,98313.0,98312.0,0.07946374]
[1746666100203,0.20343289,98313.0,98311.0,0.06129503]
[1746666100204,0.30522701,98313.0,98311.0,0.06129503]
[1746666100387,0.30522701,98313.0,98267.0,0.01017635]
[1746666100388,0.20345879,98300.0,98263.0,0.0162]
[1746666100590,0.30525291,98300.0,98263.0,0.0162]
[1746666100751,0.30525291,98300.0,98292.0,0.02956519]
[1746666100957,0.01017242,98305.0,98285.0,0.14216212]
[1746666100958,0.01,98342.0,98312.0,0.02956519]
[1746666101160,0.01,98342.0,98299.0,0.07525333]
[1746666101161,0.20343396,98312.0,98311.0,0.07408502]
[1746666101360,0.30522808,98312.0,98311.0,0.04451983]
[1746666101561,0.30522808,98312.0,98299.0,0.001]
[1746666101562,0.20345879,98300.0,98299.0,0.001]
[1746666101821,0.01017211,98308.0,98299.0,0.001]
[1746666101822,0.01016869,98341.0,98339.0,0.02956519]
[1746666101991,0.01016818,98346.0,98341.0,0.02956519]
[1746666102188,0.01016818,98346.0,98300.0,0.00203395]
[1746666102189,0.20337011,98343.0,98342.0,0.07946374]
[1746666102466,0.20337011,98343.0,98342.0,0.02956519]
[1746666102653,0.20337011,98343.0,98342.0,0.07946374]
[1746666103074,0.20337011,98343.0,98342.0,0.02956519]
[1746666103283,0.20337011,98343.0,98342.0,0.07946374]
[1746666103493,0.20337011,98343.0,98342.0,0.52956519]
[1746666103722,0.20337011,98343.0,98342.0,0.38051606]
[1746666103865,0.30516423,98343.0,98342.0,0.33061751]
[1746666104270,0.31516423,98343.0,98342.0,0.33061751]
[1746666105050,0.20345879,98300.0,98299.0,0.05089855]
[1746666105735,0.20345879,98300.0,98299.0,0.001]
[1746666105972,0.10179412,98300.0,98272.0,0.04989855]
[1746666106175,0.10179412,98300.0,98251.0,0.015]
[1746666106176,0.10179412,98299.0,98285.0,0.01017449]
[1746666106376,0.0165,98353.0,98274.0,0.0158]
[1746666106377,0.01017273,98302.0,98301.0,0.04989855]
[1746666106581,0.01017273,98302.0,98282.0,0.0020347]
[1746666106582,0.0101749,98281.0,98280.0,0.04989855]
[1746666106697,0.21367427,98281.0,98280.0,0.04989855]
[1746666107104,0.01017604,98270.0,98269.0,0.04989855]
[1746666107523,0.20352395,98269.0,98267.0,0.0154]
[1746666107727,0.20353125,98266.0,98265.0,0.04989855]
[1746666107929,0.21369887,98270.0,98269.0,0.54989855]
[1746666108368,0.21369887,98270.0,98269.0,0.5]
[1746666108590,0.20350777,98277.0,98276.0,0.04989855]
[1746666108729,0.20351956,98271.0,98270.0,0.04989855]
[1746666109617,0.01017552,98275.0,98272.0,0.04989855]
[1746666109788,0.21368718,98275.0,98274.0,0.04989855]
[1746666110374,0.01017542,98276.0,98275.0,0.04989855]
[1746666110653,0.20351055,98275.0,98274.0,0.04989855]
[1746666110902,0.20351884,98271.0,98270.0,0.355722]
[1746666111078,0.20350814,98277.0,98272.0,0.01017583]
[1746666111334,0.36682586,98310.0,98272.0,0.10179412]
[1746666111563,0.01017376,98292.0,98273.0,0.1038291]
[1746666111807,0.01017438,98286.0,98275.0,0.35572]
[1746666111978,0.20350641,98277.0,98275.0,0.35572]
[1746666112222,0.08141416,98283.0,98275.0,0.35572]
[1746666112391,0.20349742,98282.0,98275.0,0.35572]
[1746666112648,0.20350748,98277.0,98275.0,0.35572]
[1746666112857,0.20350748,98277.0,98276.0,0.0157]
[1746666113001,0.20350748,98277.0,98275.0,0.35572]
[1746666113398,0.20332438,98277.0,98275.0,0.35572]
[1746666114985,0.28473854,98277.0,98275.0,0.35572]
[1746666115194,0.10179412,98276.0,98275.0,0.35572]
[1746666116481,0.20354783,98257.0,98256.0,0.000296]
[1746666116602,0.30534195,98257.0,98256.0,0.000296]
[1746666117640,0.20359761,98233.0,98229.0,0.02648029]
[1746666117861,0.20359761,98233.0,98213.0,0.02648195]
[1746666117862,0.20363064,98218.0,98213.0,0.02648195]
[1746666118063,0.10179412,98233.0,98213.0,0.02648195]
[1746666118064,0.01017863,98245.0,98231.0,0.21378047]
[1746666118266,0.20359549,98234.0,98230.0,0.0163]
[1746666118463,0.20361526,98225.0,98219.0,0.21380764]
[1746666118726,0.30536889,98244.0,98215.0,0.5]
[1746666118727,0.01017987,98233.0,98220.0,0.0163]
[1746666118968,0.01017977,98234.0,98224.0,0.01018081]
[1746666119184,0.01017977,98234.0,98225.0,0.0101807]
[1746666119394,0.08141416,98243.0,98225.0,0.0101807]
[1746666119395,0.20356202,98251.0,98241.0,0.01017904]
[1746666119601,0.20357403,98245.0,98241.0,0.01017904]
[1746666119781,0.10179412,98244.0,98235.0,0.01017967]
[1746666120109,0.10179412,98244.0,98226.0,0.00203615]
[1746666120110,0.0101777,98254.0,98246.0,0.20356936]
[1746666120327,0.0101777,98254.0,98229.0,0.5]
[1746666120328,0.01017469,98283.0,98274.0,0.01017563]
[1746666120529,0.01,98294.0,98267.0,0.01017635]
[1746666120530,0.20350848,98276.0,98267.0,0.01017635]
[1746666120734,0.20350848,98276.0,98238.0,0.00203525]
[1746666120735,0.01017739,98257.0,98246.0,0.01017853]
[1746666120936,0.01017718,98259.0,98249.0,0.20356363]
[1746666121143,0.01017635,98267.0,98257.0,0.01017739]
[1746666121337,0.01017635,98267.0,98258.0,0.01017728]
[1746666121338,0.11197047,98267.0,98258.0,0.01017728]
[1746666121473,0.20353443,98264.0,98258.0,0.0151]
[1746666121673,0.20354243,98260.0,98259.0,0.0151]
[1746666121877,0.36682586,98290.0,98276.0,0.01017542]
[1746666122080,0.08141416,98309.0,98296.0,0.01017335]
[1746666122291,0.01017252,98304.0,98294.0,0.0154]
[1746666122486,0.01017283,98301.0,98294.0,0.0154]
[1746666122693,0.01017532,98277.0,98260.0,0.10179412]
[1746666122914,0.01017635,98267.0,98261.0,0.002035]
[1746666123119,0.01017656,98265.0,98255.0,0.0166]
[1746666123372,0.01017563,98274.0,98257.0,0.0166]
[1746666123541,0.01017521,98278.0,98261.0,0.01017697]
[1746666123744,0.01017521,98278.0,98258.0,0.00203528]
[1746666123745,0.01017583,98272.0,98258.0,0.01221236]
[1746666123997,0.08141416,98275.0,98269.0,0.20352193]
[1746666124186,0.20352271,98270.0,98268.0,0.5166]
[1746666124393,0.20352271,98270.0,98268.0,0.5]
[1746666125405,0.10179412,98269.0,98268.0,0.5]
[1746666125609,0.01017925,98239.0,98226.0,0.0101806]
[1746666125805,0.20360569,98230.0,98227.0,0.01221638]
[1746666126006,0.01017956,98236.0,98227.0,0.0165]
[1746666126207,0.08141416,98265.0,98248.0,0.01017832]
[1746666126513,0.08141416,98265.0,98228.0,0.10383004]
[1746666126514,0.01017583,98272.0,98261.0,0.01017697]
[1746666126695,0.20354241,98260.0,98256.0,0.01017749]
[1746666126897,0.20356133,98251.0,98249.0,0.0165]
[1746666127129,0.10179412,98259.0,98229.0,0.10179412]
[1746666127302,0.01017822,98249.0,98239.0,0.01017925]
[1746666127502,0.08141416,98265.0,98262.0,0.01017687]
[1746666127740,0.08141416,98265.0,98262.0,0.015]
[1746666127917,0.20353654,98263.0,98262.0,0.015]
[1746666128118,0.20355891,98252.0,98246.0,0.01017853]
[1746666128319,0.20355888,98252.0,98246.0,0.21374802]
[1746666128697,0.20356026,98251.0,98246.0,0.01017853]
[1746666128965,0.20356507,98249.0,98246.0,0.01017853]
[1746666129177,0.20356507,98249.0,98238.0,0.01017936]